{"text_format":"1","workbook":"xlsx","n_sheets":2,"sheets":["印刷用","データ"],"not_rendered":{"charts":0,"images":1,"macros":1,"external_links":0,"defined_names":1,"comments":1,"pivot_tables":0},"unopened":[],"bounds":{"document_bytes":16777216,"sheet_cells":100000,"rows_first":2000,"rows_last":500,"rows_between":2000,"halvings":0,"cell_chars":16384,"cell_head_chars":4096},"cells_cut":0,"cells_raw":0,"read":"whole","date_system":"1900"}

{"sheet":"印刷用","index":0,"n_rows":24,"n_cols":26,"rows_kept":24,"cut":false,"hidden":false,"merged":[[7,0,9,0],[3,0,4,0],[19,5,19,22],[21,5,21,22],[23,13,23,14],[23,15,23,22],[23,5,23,12],[20,15,20,18],[20,19,20,22],[22,5,22,8],[22,9,22,12],[22,13,22,14],[22,15,22,18],[22,19,22,22],[20,5,20,8],[20,9,20,12],[23,1,23,4],[16,13,16,14],[16,15,16,18],[16,19,16,22],[17,13,17,14],[17,15,17,18],[17,19,17,22],[20,13,20,14],[22,1,22,4],[21,1,21,4],[20,1,20,4],[19,1,19,4],[16,1,18,3],[16,5,16,8],[16,9,16,12],[17,5,17,8],[19,23,19,24],[20,23,20,24],[21,23,21,24],[22,23,22,24],[23,23,23,24],[15,1,15,4],[15,5,15,24],[16,23,16,24],[17,23,17,24],[18,23,18,24],[18,5,18,22],[17,9,17,12],[11,1,12,4],[11,12,11,18],[11,5,11,11],[11,19,11,24],[12,19,12,24],[12,12,12,18],[12,5,12,11],[9,1,9,4],[8,9,8,12],[8,23,8,24],[10,13,10,16],[10,23,10,24],[10,17,10,22],[10,1,10,4],[10,5,10,6],[10,7,10,8],[10,9,10,10],[10,11,10,12],[9,23,9,24],[9,13,9,16],[9,17,9,22],[9,11,9,12],[9,5,9,10],[3,1,3,4],[8,21,8,22],[8,13,8,20],[8,5,8,8],[8,1,8,4],[0,16,0,18],[4,1,4,4],[1,25,2,32],[1,1,1,24],[7,17,7,24],[7,13,7,16],[7,1,7,4],[7,5,7,12],[5,13,6,16],[5,9,5,12],[5,5,5,8],[6,17,6,24],[5,17,5,24],[3,5,3,24],[4,5,4,24],[5,1,6,4]]}
[]
[1,"体　力　テ　ス　ト　記　録　表",null,null,null,null,null,null,null,null,null,null,null,null,null,null,null,null,null,null,null,null,null,null,null,"⇒控（コピー）を取ってから提出してください。"]
["↑"]
["１名だけ印刷する場合はシート【データ】の番号を入力し印刷してください。","実 施 日",null,null,null,{"$f":"IF(A2=\"\",\"\",VLOOKUP(印刷用!$A$2,データ!$A$2:$K$601,2))","v":"2021-06-02"},null,null,null,null,null,null,null,null,null,null,null,null,null,null,null,null,null,null,null,"　シート【データ】に実施情報を入力し、左側の印刷開始ボタンを押すと印刷されます。"]
[null,"分 会 名",null,null,null,{"$f":"IF(A2=\"\",\"\",VLOOKUP(印刷用!$A$2,データ!$A$2:$K$601,3))","v":"○○農業協同組合"}]
[null,"会員番号",null,null,null,"団体コード",null,null,null,"会員コード",null,null,null,"（フリガナ）　　　会員氏名",null,null,null,{"$f":"IF(A2=\"\",\"\",VLOOKUP(印刷用!$A$2,データ!$A$2:$K$601,6))","v":"ショクレン　タロウ"}]
[null,null,null,null,null,{"$f":"IF(A2=\"\",\"\",MID(VLOOKUP(A2,データ!$A$2:$K$601,4),1,1))","v":"1"},{"$f":"IF(A2=\"\",\"\",MID(VLOOKUP(A2,データ!$A$2:$K$601,4),2,1))","v":"4"},{"$f":"IF(A2=\"\",\"\",MID(VLOOKUP(A2,データ!$A$2:$K$601,4),3,1))","v":"0"},{"$f":"IF(A2=\"\",\"\",MID(VLOOKUP(A2,データ!$A$2:$K$601,4),4,1))","v":"5"},{"$f":"IF(A2=\"\",\"\",MID(VLOOKUP(A2,データ!$A$2:$K$601,4),6,1))","v":"0"},{"$f":"IF(A2=\"\",\"\",MID(VLOOKUP(A2,データ!$A$2:$K$601,4),7,1))","v":"0"},{"$f":"IF(A2=\"\",\"\",MID(VLOOKUP(A2,データ!$A$2:$K$601,4),8,1))","v":"0"},{"$f":"IF(A2=\"\",\"\",MID(VLOOKUP(A2,データ!$A$2:$K$601,4),9,1))","v":"1"},null,null,null,null,{"$f":"IF(A2=\"\",\"\",VLOOKUP(印刷用!$A$2,データ!$A$2:$K$601,5))","v":"職連　太郎"}]
["↑　　　　　　　　　　　　複数名印刷する場合は、こちらを押してください。　　　　　　　　　　　　　　　　押すと下記の画面が出てきますのでシート【データ】の印刷最初の番号と印刷最後の番号を入力し、印刷を押してください。","実施者氏名",null,null,null,{"$f":"IF(A2=\"\",\"\",VLOOKUP(印刷用!$A$2,データ!$A$2:$K$601,7))","v":"職連　太郎"},null,null,null,null,null,null,null,"会員との続柄",null,null,null,{"$f":"IF(A2=\"\",\"\",VLOOKUP(印刷用!$A$2,データ!$A$2:$K$601,8))","v":"本人"}]
[null,"性　　別",null,null,null,{"$f":"IF(A2=\"\",\"\",VLOOKUP(印刷用!$A$2,データ!$A$2:$K$601,9))","v":"男"},null,null,null,"生年月日　　　　（西暦）",null,null,null,{"$f":"IF(A2=\"\",\"\",VLOOKUP(印刷用!$A$2,データ!$A$2:$K$601,10))","v":"1989-04-20"},null,null,null,null,null,null,null,{"$f":"IF(A2=\"\",\"\",VLOOKUP(印刷用!$A$2,データ!$A$2:$K$601,11))","v":32},null,"歳"]
[null,"身　　長",null,null,null,null,null,null,null,null,null,"ｃｍ",null,"体　　重",null,null,null,null,null,null,null,null,null,"ｋｇ"]
[null,"血　　圧",null,null,null,null,null,"mmHg～",null,null,null,"mmHg",null,"体脂肪率",null,null,null,null,null,null,null,null,null,"％"]
[null,"体力(持久力)について",null,null,null,"１．大いに自信がある",null,null,null,null,null,null,"２．まあ自信がある",null,null,null,null,null,null,"３．普通である"]
[null,null,null,null,null,"４．あまり自信がない",null,null,null,null,null,null,"５．全く自信がない"]
[]
[null,"実施した種目について、下記に記録を記入してください。"]
[null,"項目",null,null,null,"記　　　　　　　　　　　録"]
[null,"１．握力",null,null,"右","１回目",null,null,null,null,null,null,null,"ｋｇ",null,"２回目",null,null,null,null,null,null,null,"ｋｇ"]
[null,null,null,null,"左","１回目",null,null,null,null,null,null,null,"ｋｇ",null,"２回目",null,null,null,null,null,null,null,"ｋｇ"]
[null,null,null,null,"平均",null,null,null,null,null,null,null,null,null,null,null,null,null,null,null,null,null,null,"ｋｇ"]
[null,"２．上体起こし",null,null,null,null,null,null,null,null,null,null,null,null,null,null,null,null,null,null,null,null,null,"回"]
[null,"３．長座体前屈",null,null,null,"１回目",null,null,null,null,null,null,null,"ｃｍ",null,"２回目",null,null,null,null,null,null,null,"ｃｍ"]
[null,"４．反復横とび",null,null,null,null,null,null,null,null,null,null,null,null,null,null,null,null,null,null,null,null,null,"点"]
[null,"５．立ち幅とび",null,null,null,"１回目",null,null,null,null,null,null,null,"ｃｍ",null,"２回目",null,null,null,null,null,null,null,"ｃｍ"]
[null,"６．閉眼片足立ち",null,null,null,null,null,null,null,null,null,null,null,"秒",null,null,null,null,null,null,null,null,null,"秒"]

{"sheet":"データ","index":1,"n_rows":601,"n_cols":12,"rows_kept":601,"cut":false,"hidden":false,"merged":[]}
[null,"実施日","分会名","会員番号","会員氏名","会員氏名（フリガナ）","実施者氏名","会員との続柄","性別","生年月日（西暦）","年齢"]
[1,"2021-06-02","○○農業協同組合","1405-0001","職連　太郎",{"$f":"PHONETIC(E2)","v":"ショクレン　タロウ"},"職連　太郎","本人","男","1989-04-20",{"$f":"IF(B2=\"\",\"\",DATEDIF(J2,B2,\"Y\"))","v":32},"←例として表示しております。使用する場合は消してください。"]
[2,"2021-06-02","○○農業協同組合","1405-0002","岩手　花子",{"$f":"PHONETIC(E3)","v":"イワテ　ハナコ"},"岩手　花子","本人","女","1980-03-10",{"$f":"IF(B3=\"\",\"\",DATEDIF(J3,B3,\"Y\"))","v":41},"　 黄色の箇所を入力してください。それ以外は、自動で表示されます。"]
[3,"2021-06-03","○○農業協同組合","1405-0003","大通　健太","オオドオ　ケンタ","大通　健太","本人","男","1966-10-05",54,"   ※全て入力しないと、印刷がうまく表示されませんのでご注意ください。"]
[4,"2021-06-04","○○農業協同組合","1405-0004","滝沢　玲子","タキザワ　レイコ","滝沢　玲子","本人","女","1993-06-17",27,"　　　また、印刷時点で実施日が決まっていない場合は、印刷用の実施日の計算式を消してください。"]
[5,"2021-06-05","○○農業協同組合","1405-0005","盛岡　一郎","モリオカ　イチロウ","盛岡　一郎","本人","男","1999-08-08",21]
[6,null,null,null,null,"",null,null,null,null,""]
[7,null,null,null,null,"",null,null,null,null,""]
[8,null,null,null,null,"",null,null,null,null,""]
[9,null,null,null,null,"",null,null,null,null,""]
[10,null,null,null,null,"",null,null,null,null,""]
[11,null,null,null,null,"",null,null,null,null,""]
[12,null,null,null,null,"",null,null,null,null,""]
[13,null,null,null,null,"",null,null,null,null,""]
[14,null,null,null,null,"",null,null,null,null,""]
[15,null,null,null,null,"",null,null,null,null,""]
[16,null,null,null,null,"",null,null,null,null,""]
[17,null,null,null,null,"",null,null,null,null,""]
[18,null,null,null,null,"",null,null,null,null,""]
[19,null,null,null,null,"",null,null,null,null,""]
[20,null,null,null,null,"",null,null,null,null,""]
[21,null,null,null,null,"",null,null,null,null,""]
[22,null,null,null,null,"",null,null,null,null,""]
[23,null,null,null,null,"",null,null,null,null,""]
[24,null,null,null,null,"",null,null,null,null,""]
[25,null,null,null,null,"",null,null,null,null,""]
[26,null,null,null,null,"",null,null,null,null,""]
[27,null,null,null,null,"",null,null,null,null,""]
[28,null,null,null,null,"",null,null,null,null,""]
[29,null,null,null,null,"",null,null,null,null,""]
[30,null,null,null,null,"",null,null,null,null,""]
[31,null,null,null,null,"",null,null,null,null,""]
[32,null,null,null,null,"",null,null,null,null,""]
[33,null,null,null,null,"",null,null,null,null,""]
[34,null,null,null,null,"",null,null,null,null,""]
[35,null,null,null,null,"",null,null,null,null,""]
[36,null,null,null,null,"",null,null,null,null,""]
[37,null,null,null,null,"",null,null,null,null,""]
[38,null,null,null,null,"",null,null,null,null,""]
[39,null,null,null,null,"",null,null,null,null,""]
[40,null,null,null,null,"",null,null,null,null,""]
[41,null,null,null,null,"",null,null,null,null,""]
[42,null,null,null,null,"",null,null,null,null,""]
[43,null,null,null,null,"",null,null,null,null,""]
[44,null,null,null,null,"",null,null,null,null,""]
[45,null,null,null,null,"",null,null,null,null,""]
[46,null,null,null,null,"",null,null,null,null,""]
[47,null,null,null,null,"",null,null,null,null,""]
[48,null,null,null,null,"",null,null,null,null,""]
[49,null,null,null,null,"",null,null,null,null,""]
[50,null,null,null,null,"",null,null,null,null,""]
[51,null,null,null,null,"",null,null,null,null,""]
[52,null,null,null,null,"",null,null,null,null,""]
[53,null,null,null,null,"",null,null,null,null,""]
[54,null,null,null,null,"",null,null,null,null,""]
[55,null,null,null,null,"",null,null,null,null,""]
[56,null,null,null,null,"",null,null,null,null,""]
[57,null,null,null,null,"",null,null,null,null,""]
[58,null,null,null,null,"",null,null,null,null,""]
[59,null,null,null,null,"",null,null,null,null,""]
[60,null,null,null,null,"",null,null,null,null,""]
[61,null,null,null,null,"",null,null,null,null,""]
[62,null,null,null,null,"",null,null,null,null,""]
[63,null,null,null,null,"",null,null,null,null,""]
[64,null,null,null,null,"",null,null,null,null,""]
[65,null,null,null,null,"",null,null,null,null,""]
[66,null,null,null,null,{"$f":"PHONETIC(E67)","v":""},null,null,null,null,{"$f":"IF(B67=\"\",\"\",DATEDIF(J67,B67,\"Y\"))","v":""}]
[67,null,null,null,null,"",null,null,null,null,""]
[68,null,null,null,null,"",null,null,null,null,""]
[69,null,null,null,null,"",null,null,null,null,""]
[70,null,null,null,null,"",null,null,null,null,""]
[71,null,null,null,null,"",null,null,null,null,""]
[72,null,null,null,null,"",null,null,null,null,""]
[73,null,null,null,null,"",null,null,null,null,""]
[74,null,null,null,null,"",null,null,null,null,""]
[75,null,null,null,null,"",null,null,null,null,""]
[76,null,null,null,null,"",null,null,null,null,""]
[77,null,null,null,null,"",null,null,null,null,""]
[78,null,null,null,null,"",null,null,null,null,""]
[79,null,null,null,null,"",null,null,null,null,""]
[80,null,null,null,null,"",null,null,null,null,""]
[81,null,null,null,null,"",null,null,null,null,""]
[82,null,null,null,null,"",null,null,null,null,""]
[83,null,null,null,null,"",null,null,null,null,""]
[84,null,null,null,null,"",null,null,null,null,""]
[85,null,null,null,null,"",null,null,null,null,""]
[86,null,null,null,null,"",null,null,null,null,""]
[87,null,null,null,null,"",null,null,null,null,""]
[88,null,null,null,null,"",null,null,null,null,""]
[89,null,null,null,null,"",null,null,null,null,""]
[90,null,null,null,null,"",null,null,null,null,""]
[91,null,null,null,null,"",null,null,null,null,""]
[92,null,null,null,null,"",null,null,null,null,""]
[93,null,null,null,null,"",null,null,null,null,""]
[94,null,null,null,null,"",null,null,null,null,""]
[95,null,null,null,null,"",null,null,null,null,""]
[96,null,null,null,null,"",null,null,null,null,""]
[97,null,null,null,null,"",null,null,null,null,""]
[98,null,null,null,null,"",null,null,null,null,""]
[99,null,null,null,null,"",null,null,null,null,""]
[100,null,null,null,null,"",null,null,null,null,""]
[101,null,null,null,null,"",null,null,null,null,""]
[102,null,null,null,null,"",null,null,null,null,""]
[103,null,null,null,null,"",null,null,null,null,""]
[104,null,null,null,null,"",null,null,null,null,""]
[105,null,null,null,null,"",null,null,null,null,""]
[106,null,null,null,null,"",null,null,null,null,""]
[107,null,null,null,null,"",null,null,null,null,""]
[108,null,null,null,null,"",null,null,null,null,""]
[109,null,null,null,null,"",null,null,null,null,""]
[110,null,null,null,null,"",null,null,null,null,""]
[111,null,null,null,null,"",null,null,null,null,""]
[112,null,null,null,null,"",null,null,null,null,""]
[113,null,null,null,null,"",null,null,null,null,""]
[114,null,null,null,null,"",null,null,null,null,""]
[115,null,null,null,null,"",null,null,null,null,""]
[116,null,null,null,null,"",null,null,null,null,""]
[117,null,null,null,null,"",null,null,null,null,""]
[118,null,null,null,null,"",null,null,null,null,""]
[119,null,null,null,null,"",null,null,null,null,""]
[120,null,null,null,null,"",null,null,null,null,""]
[121,null,null,null,null,"",null,null,null,null,""]
[122,null,null,null,null,"",null,null,null,null,""]
[123,null,null,null,null,"",null,null,null,null,""]
[124,null,null,null,null,"",null,null,null,null,""]
[125,null,null,null,null,"",null,null,null,null,""]
[126,null,null,null,null,"",null,null,null,null,""]
[127,null,null,null,null,"",null,null,null,null,""]
[128,null,null,null,null,"",null,null,null,null,""]
[129,null,null,null,null,"",null,null,null,null,""]
[130,null,null,null,null,{"$f":"PHONETIC(E131)","v":""},null,null,null,null,{"$f":"IF(B131=\"\",\"\",DATEDIF(J131,B131,\"Y\"))","v":""}]
[131,null,null,null,null,"",null,null,null,null,""]
[132,null,null,null,null,"",null,null,null,null,""]
[133,null,null,null,null,"",null,null,null,null,""]
[134,null,null,null,null,"",null,null,null,null,""]
[135,null,null,null,null,"",null,null,null,null,""]
[136,null,null,null,null,"",null,null,null,null,""]
[137,null,null,null,null,"",null,null,null,null,""]
[138,null,null,null,null,"",null,null,null,null,""]
[139,null,null,null,null,"",null,null,null,null,""]
[140,null,null,null,null,"",null,null,null,null,""]
[141,null,null,null,null,"",null,null,null,null,""]
[142,null,null,null,null,"",null,null,null,null,""]
[143,null,null,null,null,"",null,null,null,null,""]
[144,null,null,null,null,"",null,null,null,null,""]
[145,null,null,null,null,"",null,null,null,null,""]
[146,null,null,null,null,"",null,null,null,null,""]
[147,null,null,null,null,"",null,null,null,null,""]
[148,null,null,null,null,"",null,null,null,null,""]
[149,null,null,null,null,"",null,null,null,null,""]
[150,null,null,null,null,"",null,null,null,null,""]
[151,null,null,null,null,"",null,null,null,null,""]
[152,null,null,null,null,"",null,null,null,null,""]
[153,null,null,null,null,"",null,null,null,null,""]
[154,null,null,null,null,"",null,null,null,null,""]
[155,null,null,null,null,"",null,null,null,null,""]
[156,null,null,null,null,"",null,null,null,null,""]
[157,null,null,null,null,"",null,null,null,null,""]
[158,null,null,null,null,"",null,null,null,null,""]
[159,null,null,null,null,"",null,null,null,null,""]
[160,null,null,null,null,"",null,null,null,null,""]
[161,null,null,null,null,"",null,null,null,null,""]
[162,null,null,null,null,"",null,null,null,null,""]
[163,null,null,null,null,"",null,null,null,null,""]
[164,null,null,null,null,"",null,null,null,null,""]
[165,null,null,null,null,"",null,null,null,null,""]
[166,null,null,null,null,"",null,null,null,null,""]
[167,null,null,null,null,"",null,null,null,null,""]
[168,null,null,null,null,"",null,null,null,null,""]
[169,null,null,null,null,"",null,null,null,null,""]
[170,null,null,null,null,"",null,null,null,null,""]
[171,null,null,null,null,"",null,null,null,null,""]
[172,null,null,null,null,"",null,null,null,null,""]
[173,null,null,null,null,"",null,null,null,null,""]
[174,null,null,null,null,"",null,null,null,null,""]
[175,null,null,null,null,"",null,null,null,null,""]
[176,null,null,null,null,"",null,null,null,null,""]
[177,null,null,null,null,"",null,null,null,null,""]
[178,null,null,null,null,"",null,null,null,null,""]
[179,null,null,null,null,"",null,null,null,null,""]
[180,null,null,null,null,"",null,null,null,null,""]
[181,null,null,null,null,"",null,null,null,null,""]
[182,null,null,null,null,"",null,null,null,null,""]
[183,null,null,null,null,"",null,null,null,null,""]
[184,null,null,null,null,"",null,null,null,null,""]
[185,null,null,null,null,"",null,null,null,null,""]
[186,null,null,null,null,"",null,null,null,null,""]
[187,null,null,null,null,"",null,null,null,null,""]
[188,null,null,null,null,"",null,null,null,null,""]
[189,null,null,null,null,"",null,null,null,null,""]
[190,null,null,null,null,"",null,null,null,null,""]
[191,null,null,null,null,"",null,null,null,null,""]
[192,null,null,null,null,"",null,null,null,null,""]
[193,null,null,null,null,"",null,null,null,null,""]
[194,null,null,null,null,{"$f":"PHONETIC(E195)","v":""},null,null,null,null,{"$f":"IF(B195=\"\",\"\",DATEDIF(J195,B195,\"Y\"))","v":""}]
[195,null,null,null,null,"",null,null,null,null,""]
[196,null,null,null,null,"",null,null,null,null,""]
[197,null,null,null,null,"",null,null,null,null,""]
[198,null,null,null,null,"",null,null,null,null,""]
[199,null,null,null,null,"",null,null,null,null,""]
[200,null,null,null,null,"",null,null,null,null,""]
[201,null,null,null,null,"",null,null,null,null,""]
[202,null,null,null,null,"",null,null,null,null,""]
[203,null,null,null,null,"",null,null,null,null,""]
[204,null,null,null,null,"",null,null,null,null,""]
[205,null,null,null,null,"",null,null,null,null,""]
[206,null,null,null,null,"",null,null,null,null,""]
[207,null,null,null,null,"",null,null,null,null,""]
[208,null,null,null,null,"",null,null,null,null,""]
[209,null,null,null,null,"",null,null,null,null,""]
[210,null,null,null,null,"",null,null,null,null,""]
[211,null,null,null,null,"",null,null,null,null,""]
[212,null,null,null,null,"",null,null,null,null,""]
[213,null,null,null,null,"",null,null,null,null,""]
[214,null,null,null,null,"",null,null,null,null,""]
[215,null,null,null,null,"",null,null,null,null,""]
[216,null,null,null,null,"",null,null,null,null,""]
[217,null,null,null,null,"",null,null,null,null,""]
[218,null,null,null,null,"",null,null,null,null,""]
[219,null,null,null,null,"",null,null,null,null,""]
[220,null,null,null,null,"",null,null,null,null,""]
[221,null,null,null,null,"",null,null,null,null,""]
[222,null,null,null,null,"",null,null,null,null,""]
[223,null,null,null,null,"",null,null,null,null,""]
[224,null,null,null,null,"",null,null,null,null,""]
[225,null,null,null,null,"",null,null,null,null,""]
[226,null,null,null,null,"",null,null,null,null,""]
[227,null,null,null,null,"",null,null,null,null,""]
[228,null,null,null,null,"",null,null,null,null,""]
[229,null,null,null,null,"",null,null,null,null,""]
[230,null,null,null,null,"",null,null,null,null,""]
[231,null,null,null,null,"",null,null,null,null,""]
[232,null,null,null,null,"",null,null,null,null,""]
[233,null,null,null,null,"",null,null,null,null,""]
[234,null,null,null,null,"",null,null,null,null,""]
[235,null,null,null,null,"",null,null,null,null,""]
[236,null,null,null,null,"",null,null,null,null,""]
[237,null,null,null,null,"",null,null,null,null,""]
[238,null,null,null,null,"",null,null,null,null,""]
[239,null,null,null,null,"",null,null,null,null,""]
[240,null,null,null,null,"",null,null,null,null,""]
[241,null,null,null,null,"",null,null,null,null,""]
[242,null,null,null,null,"",null,null,null,null,""]
[243,null,null,null,null,"",null,null,null,null,""]
[244,null,null,null,null,"",null,null,null,null,""]
[245,null,null,null,null,"",null,null,null,null,""]
[246,null,null,null,null,"",null,null,null,null,""]
[247,null,null,null,null,"",null,null,null,null,""]
[248,null,null,null,null,"",null,null,null,null,""]
[249,null,null,null,null,"",null,null,null,null,""]
[250,null,null,null,null,"",null,null,null,null,""]
[251,null,null,null,null,"",null,null,null,null,""]
[252,null,null,null,null,"",null,null,null,null,""]
[253,null,null,null,null,"",null,null,null,null,""]
[254,null,null,null,null,"",null,null,null,null,""]
[255,null,null,null,null,"",null,null,null,null,""]
[256,null,null,null,null,"",null,null,null,null,""]
[257,null,null,null,null,"",null,null,null,null,""]
[258,null,null,null,null,{"$f":"PHONETIC(E259)","v":""},null,null,null,null,{"$f":"IF(B259=\"\",\"\",DATEDIF(J259,B259,\"Y\"))","v":""}]
[259,null,null,null,null,"",null,null,null,null,""]
[260,null,null,null,null,"",null,null,null,null,""]
[261,null,null,null,null,"",null,null,null,null,""]
[262,null,null,null,null,"",null,null,null,null,""]
[263,null,null,null,null,"",null,null,null,null,""]
[264,null,null,null,null,"",null,null,null,null,""]
[265,null,null,null,null,"",null,null,null,null,""]
[266,null,null,null,null,"",null,null,null,null,""]
[267,null,null,null,null,"",null,null,null,null,""]
[268,null,null,null,null,"",null,null,null,null,""]
[269,null,null,null,null,"",null,null,null,null,""]
[270,null,null,null,null,"",null,null,null,null,""]
[271,null,null,null,null,"",null,null,null,null,""]
[272,null,null,null,null,"",null,null,null,null,""]
[273,null,null,null,null,"",null,null,null,null,""]
[274,null,null,null,null,"",null,null,null,null,""]
[275,null,null,null,null,"",null,null,null,null,""]
[276,null,null,null,null,"",null,null,null,null,""]
[277,null,null,null,null,"",null,null,null,null,""]
[278,null,null,null,null,"",null,null,null,null,""]
[279,null,null,null,null,"",null,null,null,null,""]
[280,null,null,null,null,"",null,null,null,null,""]
[281,null,null,null,null,"",null,null,null,null,""]
[282,null,null,null,null,"",null,null,null,null,""]
[283,null,null,null,null,"",null,null,null,null,""]
[284,null,null,null,null,"",null,null,null,null,""]
[285,null,null,null,null,"",null,null,null,null,""]
[286,null,null,null,null,"",null,null,null,null,""]
[287,null,null,null,null,"",null,null,null,null,""]
[288,null,null,null,null,"",null,null,null,null,""]
[289,null,null,null,null,"",null,null,null,null,""]
[290,null,null,null,null,"",null,null,null,null,""]
[291,null,null,null,null,"",null,null,null,null,""]
[292,null,null,null,null,"",null,null,null,null,""]
[293,null,null,null,null,"",null,null,null,null,""]
[294,null,null,null,null,"",null,null,null,null,""]
[295,null,null,null,null,"",null,null,null,null,""]
[296,null,null,null,null,"",null,null,null,null,""]
[297,null,null,null,null,"",null,null,null,null,""]
[298,null,null,null,null,"",null,null,null,null,""]
[299,null,null,null,null,"",null,null,null,null,""]
[300,null,null,null,null,"",null,null,null,null,""]
[301,null,null,null,null,"",null,null,null,null,""]
[302,null,null,null,null,"",null,null,null,null,""]
[303,null,null,null,null,"",null,null,null,null,""]
[304,null,null,null,null,"",null,null,null,null,""]
[305,null,null,null,null,"",null,null,null,null,""]
[306,null,null,null,null,"",null,null,null,null,""]
[307,null,null,null,null,"",null,null,null,null,""]
[308,null,null,null,null,"",null,null,null,null,""]
[309,null,null,null,null,"",null,null,null,null,""]
[310,null,null,null,null,"",null,null,null,null,""]
[311,null,null,null,null,"",null,null,null,null,""]
[312,null,null,null,null,"",null,null,null,null,""]
[313,null,null,null,null,"",null,null,null,null,""]
[314,null,null,null,null,"",null,null,null,null,""]
[315,null,null,null,null,"",null,null,null,null,""]
[316,null,null,null,null,"",null,null,null,null,""]
[317,null,null,null,null,"",null,null,null,null,""]
[318,null,null,null,null,"",null,null,null,null,""]
[319,null,null,null,null,"",null,null,null,null,""]
[320,null,null,null,null,"",null,null,null,null,""]
[321,null,null,null,null,"",null,null,null,null,""]
[322,null,null,null,null,{"$f":"PHONETIC(E323)","v":""},null,null,null,null,{"$f":"IF(B323=\"\",\"\",DATEDIF(J323,B323,\"Y\"))","v":""}]
[323,null,null,null,null,"",null,null,null,null,""]
[324,null,null,null,null,"",null,null,null,null,""]
[325,null,null,null,null,"",null,null,null,null,""]
[326,null,null,null,null,"",null,null,null,null,""]
[327,null,null,null,null,"",null,null,null,null,""]
[328,null,null,null,null,"",null,null,null,null,""]
[329,null,null,null,null,"",null,null,null,null,""]
[330,null,null,null,null,"",null,null,null,null,""]
[331,null,null,null,null,"",null,null,null,null,""]
[332,null,null,null,null,"",null,null,null,null,""]
[333,null,null,null,null,"",null,null,null,null,""]
[334,null,null,null,null,"",null,null,null,null,""]
[335,null,null,null,null,"",null,null,null,null,""]
[336,null,null,null,null,"",null,null,null,null,""]
[337,null,null,null,null,"",null,null,null,null,""]
[338,null,null,null,null,"",null,null,null,null,""]
[339,null,null,null,null,"",null,null,null,null,""]
[340,null,null,null,null,"",null,null,null,null,""]
[341,null,null,null,null,"",null,null,null,null,""]
[342,null,null,null,null,"",null,null,null,null,""]
[343,null,null,null,null,"",null,null,null,null,""]
[344,null,null,null,null,"",null,null,null,null,""]
[345,null,null,null,null,"",null,null,null,null,""]
[346,null,null,null,null,"",null,null,null,null,""]
[347,null,null,null,null,"",null,null,null,null,""]
[348,null,null,null,null,"",null,null,null,null,""]
[349,null,null,null,null,"",null,null,null,null,""]
[350,null,null,null,null,"",null,null,null,null,""]
[351,null,null,null,null,"",null,null,null,null,""]
[352,null,null,null,null,"",null,null,null,null,""]
[353,null,null,null,null,"",null,null,null,null,""]
[354,null,null,null,null,"",null,null,null,null,""]
[355,null,null,null,null,"",null,null,null,null,""]
[356,null,null,null,null,"",null,null,null,null,""]
[357,null,null,null,null,"",null,null,null,null,""]
[358,null,null,null,null,"",null,null,null,null,""]
[359,null,null,null,null,"",null,null,null,null,""]
[360,null,null,null,null,"",null,null,null,null,""]
[361,null,null,null,null,"",null,null,null,null,""]
[362,null,null,null,null,"",null,null,null,null,""]
[363,null,null,null,null,"",null,null,null,null,""]
[364,null,null,null,null,"",null,null,null,null,""]
[365,null,null,null,null,"",null,null,null,null,""]
[366,null,null,null,null,"",null,null,null,null,""]
[367,null,null,null,null,"",null,null,null,null,""]
[368,null,null,null,null,"",null,null,null,null,""]
[369,null,null,null,null,"",null,null,null,null,""]
[370,null,null,null,null,"",null,null,null,null,""]
[371,null,null,null,null,"",null,null,null,null,""]
[372,null,null,null,null,"",null,null,null,null,""]
[373,null,null,null,null,"",null,null,null,null,""]
[374,null,null,null,null,"",null,null,null,null,""]
[375,null,null,null,null,"",null,null,null,null,""]
[376,null,null,null,null,"",null,null,null,null,""]
[377,null,null,null,null,"",null,null,null,null,""]
[378,null,null,null,null,"",null,null,null,null,""]
[379,null,null,null,null,"",null,null,null,null,""]
[380,null,null,null,null,"",null,null,null,null,""]
[381,null,null,null,null,"",null,null,null,null,""]
[382,null,null,null,null,"",null,null,null,null,""]
[383,null,null,null,null,"",null,null,null,null,""]
[384,null,null,null,null,"",null,null,null,null,""]
[385,null,null,null,null,"",null,null,null,null,""]
[386,null,null,null,null,{"$f":"PHONETIC(E387)","v":""},null,null,null,null,{"$f":"IF(B387=\"\",\"\",DATEDIF(J387,B387,\"Y\"))","v":""}]
[387,null,null,null,null,"",null,null,null,null,""]
[388,null,null,null,null,"",null,null,null,null,""]
[389,null,null,null,null,"",null,null,null,null,""]
[390,null,null,null,null,"",null,null,null,null,""]
[391,null,null,null,null,"",null,null,null,null,""]
[392,null,null,null,null,"",null,null,null,null,""]
[393,null,null,null,null,"",null,null,null,null,""]
[394,null,null,null,null,"",null,null,null,null,""]
[395,null,null,null,null,"",null,null,null,null,""]
[396,null,null,null,null,"",null,null,null,null,""]
[397,null,null,null,null,"",null,null,null,null,""]
[398,null,null,null,null,"",null,null,null,null,""]
[399,null,null,null,null,"",null,null,null,null,""]
[400,null,null,null,null,"",null,null,null,null,""]
[401,null,null,null,null,"",null,null,null,null,""]
[402,null,null,null,null,"",null,null,null,null,""]
[403,null,null,null,null,"",null,null,null,null,""]
[404,null,null,null,null,"",null,null,null,null,""]
[405,null,null,null,null,"",null,null,null,null,""]
[406,null,null,null,null,"",null,null,null,null,""]
[407,null,null,null,null,"",null,null,null,null,""]
[408,null,null,null,null,"",null,null,null,null,""]
[409,null,null,null,null,"",null,null,null,null,""]
[410,null,null,null,null,"",null,null,null,null,""]
[411,null,null,null,null,"",null,null,null,null,""]
[412,null,null,null,null,"",null,null,null,null,""]
[413,null,null,null,null,"",null,null,null,null,""]
[414,null,null,null,null,"",null,null,null,null,""]
[415,null,null,null,null,"",null,null,null,null,""]
[416,null,null,null,null,"",null,null,null,null,""]
[417,null,null,null,null,"",null,null,null,null,""]
[418,null,null,null,null,"",null,null,null,null,""]
[419,null,null,null,null,"",null,null,null,null,""]
[420,null,null,null,null,"",null,null,null,null,""]
[421,null,null,null,null,"",null,null,null,null,""]
[422,null,null,null,null,"",null,null,null,null,""]
[423,null,null,null,null,"",null,null,null,null,""]
[424,null,null,null,null,"",null,null,null,null,""]
[425,null,null,null,null,"",null,null,null,null,""]
[426,null,null,null,null,"",null,null,null,null,""]
[427,null,null,null,null,"",null,null,null,null,""]
[428,null,null,null,null,"",null,null,null,null,""]
[429,null,null,null,null,"",null,null,null,null,""]
[430,null,null,null,null,"",null,null,null,null,""]
[431,null,null,null,null,"",null,null,null,null,""]
[432,null,null,null,null,"",null,null,null,null,""]
[433,null,null,null,null,"",null,null,null,null,""]
[434,null,null,null,null,"",null,null,null,null,""]
[435,null,null,null,null,"",null,null,null,null,""]
[436,null,null,null,null,"",null,null,null,null,""]
[437,null,null,null,null,"",null,null,null,null,""]
[438,null,null,null,null,"",null,null,null,null,""]
[439,null,null,null,null,"",null,null,null,null,""]
[440,null,null,null,null,"",null,null,null,null,""]
[441,null,null,null,null,"",null,null,null,null,""]
[442,null,null,null,null,"",null,null,null,null,""]
[443,null,null,null,null,"",null,null,null,null,""]
[444,null,null,null,null,"",null,null,null,null,""]
[445,null,null,null,null,"",null,null,null,null,""]
[446,null,null,null,null,"",null,null,null,null,""]
[447,null,null,null,null,"",null,null,null,null,""]
[448,null,null,null,null,"",null,null,null,null,""]
[449,null,null,null,null,"",null,null,null,null,""]
[450,null,null,null,null,{"$f":"PHONETIC(E451)","v":""},null,null,null,null,{"$f":"IF(B451=\"\",\"\",DATEDIF(J451,B451,\"Y\"))","v":""}]
[451,null,null,null,null,"",null,null,null,null,""]
[452,null,null,null,null,"",null,null,null,null,""]
[453,null,null,null,null,"",null,null,null,null,""]
[454,null,null,null,null,"",null,null,null,null,""]
[455,null,null,null,null,"",null,null,null,null,""]
[456,null,null,null,null,"",null,null,null,null,""]
[457,null,null,null,null,"",null,null,null,null,""]
[458,null,null,null,null,"",null,null,null,null,""]
[459,null,null,null,null,"",null,null,null,null,""]
[460,null,null,null,null,"",null,null,null,null,""]
[461,null,null,null,null,"",null,null,null,null,""]
[462,null,null,null,null,"",null,null,null,null,""]
[463,null,null,null,null,"",null,null,null,null,""]
[464,null,null,null,null,"",null,null,null,null,""]
[465,null,null,null,null,"",null,null,null,null,""]
[466,null,null,null,null,"",null,null,null,null,""]
[467,null,null,null,null,"",null,null,null,null,""]
[468,null,null,null,null,"",null,null,null,null,""]
[469,null,null,null,null,"",null,null,null,null,""]
[470,null,null,null,null,"",null,null,null,null,""]
[471,null,null,null,null,"",null,null,null,null,""]
[472,null,null,null,null,"",null,null,null,null,""]
[473,null,null,null,null,"",null,null,null,null,""]
[474,null,null,null,null,"",null,null,null,null,""]
[475,null,null,null,null,"",null,null,null,null,""]
[476,null,null,null,null,"",null,null,null,null,""]
[477,null,null,null,null,"",null,null,null,null,""]
[478,null,null,null,null,"",null,null,null,null,""]
[479,null,null,null,null,"",null,null,null,null,""]
[480,null,null,null,null,"",null,null,null,null,""]
[481,null,null,null,null,"",null,null,null,null,""]
[482,null,null,null,null,"",null,null,null,null,""]
[483,null,null,null,null,"",null,null,null,null,""]
[484,null,null,null,null,"",null,null,null,null,""]
[485,null,null,null,null,"",null,null,null,null,""]
[486,null,null,null,null,"",null,null,null,null,""]
[487,null,null,null,null,"",null,null,null,null,""]
[488,null,null,null,null,"",null,null,null,null,""]
[489,null,null,null,null,"",null,null,null,null,""]
[490,null,null,null,null,"",null,null,null,null,""]
[491,null,null,null,null,"",null,null,null,null,""]
[492,null,null,null,null,"",null,null,null,null,""]
[493,null,null,null,null,"",null,null,null,null,""]
[494,null,null,null,null,"",null,null,null,null,""]
[495,null,null,null,null,"",null,null,null,null,""]
[496,null,null,null,null,"",null,null,null,null,""]
[497,null,null,null,null,"",null,null,null,null,""]
[498,null,null,null,null,"",null,null,null,null,""]
[499,null,null,null,null,"",null,null,null,null,""]
[500,null,null,null,null,"",null,null,null,null,""]
[501,null,null,null,null,"",null,null,null,null,""]
[502,null,null,null,null,"",null,null,null,null,""]
[503,null,null,null,null,"",null,null,null,null,""]
[504,null,null,null,null,"",null,null,null,null,""]
[505,null,null,null,null,"",null,null,null,null,""]
[506,null,null,null,null,"",null,null,null,null,""]
[507,null,null,null,null,"",null,null,null,null,""]
[508,null,null,null,null,"",null,null,null,null,""]
[509,null,null,null,null,"",null,null,null,null,""]
[510,null,null,null,null,"",null,null,null,null,""]
[511,null,null,null,null,"",null,null,null,null,""]
[512,null,null,null,null,"",null,null,null,null,""]
[513,null,null,null,null,"",null,null,null,null,""]
[514,null,null,null,null,{"$f":"PHONETIC(E515)","v":""},null,null,null,null,{"$f":"IF(B515=\"\",\"\",DATEDIF(J515,B515,\"Y\"))","v":""}]
[515,null,null,null,null,"",null,null,null,null,""]
[516,null,null,null,null,"",null,null,null,null,""]
[517,null,null,null,null,"",null,null,null,null,""]
[518,null,null,null,null,"",null,null,null,null,""]
[519,null,null,null,null,"",null,null,null,null,""]
[520,null,null,null,null,"",null,null,null,null,""]
[521,null,null,null,null,"",null,null,null,null,""]
[522,null,null,null,null,"",null,null,null,null,""]
[523,null,null,null,null,"",null,null,null,null,""]
[524,null,null,null,null,"",null,null,null,null,""]
[525,null,null,null,null,"",null,null,null,null,""]
[526,null,null,null,null,"",null,null,null,null,""]
[527,null,null,null,null,"",null,null,null,null,""]
[528,null,null,null,null,"",null,null,null,null,""]
[529,null,null,null,null,"",null,null,null,null,""]
[530,null,null,null,null,"",null,null,null,null,""]
[531,null,null,null,null,"",null,null,null,null,""]
[532,null,null,null,null,"",null,null,null,null,""]
[533,null,null,null,null,"",null,null,null,null,""]
[534,null,null,null,null,"",null,null,null,null,""]
[535,null,null,null,null,"",null,null,null,null,""]
[536,null,null,null,null,"",null,null,null,null,""]
[537,null,null,null,null,"",null,null,null,null,""]
[538,null,null,null,null,"",null,null,null,null,""]
[539,null,null,null,null,"",null,null,null,null,""]
[540,null,null,null,null,"",null,null,null,null,""]
[541,null,null,null,null,"",null,null,null,null,""]
[542,null,null,null,null,"",null,null,null,null,""]
[543,null,null,null,null,"",null,null,null,null,""]
[544,null,null,null,null,"",null,null,null,null,""]
[545,null,null,null,null,"",null,null,null,null,""]
[546,null,null,null,null,"",null,null,null,null,""]
[547,null,null,null,null,"",null,null,null,null,""]
[548,null,null,null,null,"",null,null,null,null,""]
[549,null,null,null,null,"",null,null,null,null,""]
[550,null,null,null,null,"",null,null,null,null,""]
[551,null,null,null,null,"",null,null,null,null,""]
[552,null,null,null,null,"",null,null,null,null,""]
[553,null,null,null,null,"",null,null,null,null,""]
[554,null,null,null,null,"",null,null,null,null,""]
[555,null,null,null,null,"",null,null,null,null,""]
[556,null,null,null,null,"",null,null,null,null,""]
[557,null,null,null,null,"",null,null,null,null,""]
[558,null,null,null,null,"",null,null,null,null,""]
[559,null,null,null,null,"",null,null,null,null,""]
[560,null,null,null,null,"",null,null,null,null,""]
[561,null,null,null,null,"",null,null,null,null,""]
[562,null,null,null,null,"",null,null,null,null,""]
[563,null,null,null,null,"",null,null,null,null,""]
[564,null,null,null,null,"",null,null,null,null,""]
[565,null,null,null,null,"",null,null,null,null,""]
[566,null,null,null,null,"",null,null,null,null,""]
[567,null,null,null,null,"",null,null,null,null,""]
[568,null,null,null,null,"",null,null,null,null,""]
[569,null,null,null,null,"",null,null,null,null,""]
[570,null,null,null,null,"",null,null,null,null,""]
[571,null,null,null,null,"",null,null,null,null,""]
[572,null,null,null,null,"",null,null,null,null,""]
[573,null,null,null,null,"",null,null,null,null,""]
[574,null,null,null,null,"",null,null,null,null,""]
[575,null,null,null,null,"",null,null,null,null,""]
[576,null,null,null,null,"",null,null,null,null,""]
[577,null,null,null,null,"",null,null,null,null,""]
[578,null,null,null,null,{"$f":"PHONETIC(E579)","v":""},null,null,null,null,{"$f":"IF(B579=\"\",\"\",DATEDIF(J579,B579,\"Y\"))","v":""}]
[579,null,null,null,null,"",null,null,null,null,""]
[580,null,null,null,null,"",null,null,null,null,""]
[581,null,null,null,null,"",null,null,null,null,""]
[582,null,null,null,null,"",null,null,null,null,""]
[583,null,null,null,null,"",null,null,null,null,""]
[584,null,null,null,null,"",null,null,null,null,""]
[585,null,null,null,null,"",null,null,null,null,""]
[586,null,null,null,null,"",null,null,null,null,""]
[587,null,null,null,null,"",null,null,null,null,""]
[588,null,null,null,null,"",null,null,null,null,""]
[589,null,null,null,null,"",null,null,null,null,""]
[590,null,null,null,null,"",null,null,null,null,""]
[591,null,null,null,null,"",null,null,null,null,""]
[592,null,null,null,null,"",null,null,null,null,""]
[593,null,null,null,null,"",null,null,null,null,""]
[594,null,null,null,null,"",null,null,null,null,""]
[595,null,null,null,null,"",null,null,null,null,""]
[596,null,null,null,null,"",null,null,null,null,""]
[597,null,null,null,null,"",null,null,null,null,""]
[598,null,null,null,null,"",null,null,null,null,""]
[599,null,null,null,null,"",null,null,null,null,""]
[600,null,null,null,null,"",null,null,null,null,""]